fUST/lending_fUST_20250309
["ID","MTS","AMOUNT","RATE_DAILY","PERIOD"]
[355747537,1741528052524,-1699.87889872,0.00031389,2]
[355747538,1741528052549,-500.0,0.00031389,2]
[355747539,1741528052575,-1699.87889872,0.00031389,2]
[355747540,1741528052597,-561.74563055,0.00031389,2]
[355747541,1741528052624,-1699.87889872,0.00031389,2]
[355747542,1741528052650,-1699.87889872,0.00031389,2]
[355747543,1741528052675,-1699.87889872,0.00031389,2]
[355747544,1741528052701,-1108.33328704,0.00031389,2]
[355747545,1741528053129,-529.87926471,0.00031389,2]
[355747551,1741528152099,-724.2146365,0.00029289,2]
[355747552,1741528155169,-300.0,0.00031372,2]
[355747553,1741528155193,-482.01245608,0.00031373,5]
[355747554,1741528155218,-500.0,0.00031373,5]
[355747555,1741528155242,-500.0,0.00031373,5]
[355747556,1741528155264,-500.0,0.00031373,2]
[355747557,1741528155287,-500.0,0.00031373,5]
[355747558,1741528155310,-501.17988011,0.00031373,5]
[355747559,1741528155333,-500.0,0.00031373,2]
[355747560,1741528155355,-500.0,0.00031373,5]
[355747561,1741528155379,-500.0,0.00031373,5]
[355747562,1741528155402,-504.326413,0.00031373,2]
[355747563,1741528155428,-502.44637538,0.00031373,5]
[355747564,1741528155452,-1047.8182215,0.00031379,2]
[355747565,1741528155476,-278.93562111,0.00031388,2]
[355747566,1741528155499,-500.0,0.00031388,2]
[355747567,1741528155522,-317.51473559,0.00031388,2]
[355747568,1741528155546,-500.0,0.00031388,2]
[355747569,1741528155572,-500.0,0.00031388,2]
[355747570,1741528155599,-1225.88516093,0.00031388,2]
[355747571,1741528155623,-500.0,0.00031388,2]
[355747572,1741528155648,-500.0,0.00031388,2]
[355747573,1741528155672,-500.0,0.00031388,2]
[355747574,1741528155696,-500.0,0.00031388,2]
[355747575,1741528155732,-1225.88516093,0.00031388,2]
[355747576,1741528155763,-500.0,0.00031388,2]
[355747577,1741528155787,-500.0,0.00031388,2]
[355747578,1741528155814,-500.0,0.00031388,2]
[355747579,1741528155843,-500.0,0.00031388,2]
[355747580,1741528155871,-1225.88516093,0.00031388,2]
[355747581,1741528155897,-500.0,0.00031388,2]
[355747582,1741528155922,-393.79919902,0.00031388,2]
[355747583,1741528155950,-500.0,0.00031388,2]
[355747584,1741528155977,-500.0,0.00031388,2]
[355747585,1741528156005,-1225.88516093,0.00031388,2]
[355747586,1741528156030,-500.0,0.00031388,2]
[355747587,1741528156059,-500.0,0.00031388,2]
[355747588,1741528156087,-1225.88516093,0.00031388,2]
[355747589,1741528156111,-500.0,0.00031388,2]
[355747590,1741528156140,-595.15089119,0.00031388,2]
[355747591,1741528156165,-500.0,0.00031388,2]
[355747592,1741528156193,-1225.88516093,0.00031388,2]
[355747593,1741528156219,-500.0,0.00031388,2]
[355747594,1741528156243,-500.0,0.00031388,2]
[355747595,1741528156271,-1225.88516093,0.00031388,2]
[355747596,1741528156298,-500.0,0.00031388,2]
[355747597,1741528156322,-500.0,0.00031388,2]
[355747598,1741528156349,-1225.88516093,0.00031388,2]
[355747599,1741528156374,-500.0,0.00031388,2]
[355747600,1741528156398,-246.25646607,0.00031388,2]
[355747601,1741528156420,-650.0,0.00031388,2]
[355747602,1741528156445,-500.0,0.00031388,2]
[355747603,1741528156474,-1225.88516093,0.00031388,2]
[355747604,1741528156500,-199.66842382,0.00031388,2]
[355747605,1741528156530,-1225.88516093,0.00031388,2]
[355747606,1741528156558,-1225.88516093,0.00031388,2]
[355747607,1741528156585,-1225.88516093,0.00031388,2]
[355747608,1741528156614,-1225.88516093,0.00031388,2]
[355747609,1741528156642,-1225.88516093,0.00031388,2]
[355747610,1741528156668,-500.0,0.00031388,2]
[355747611,1741528156696,-1225.88516093,0.00031388,2]
[355747612,1741528156724,-1225.88516093,0.00031388,2]
[355747613,1741528156753,-1225.88516093,0.00031388,2]
[355747614,1741528156778,-500.0,0.00031388,2]
[355747615,1741528156806,-1225.88516093,0.00031388,2]
[355747616,1741528156835,-1225.88516093,0.00031388,2]
[355747617,1741528156862,-1225.88516093,0.00031388,2]
[355747618,1741528156888,-1225.88516093,0.00031388,2]
[355747619,1741528156914,-1225.88516093,0.00031388,2]
[355747620,1741528157077,-1225.88516093,0.00031388,2]
[355747621,1741528157105,-1225.88516093,0.00031388,2]
[355747622,1741528157133,-1225.88516093,0.00031388,2]
[355747623,1741528157162,-1225.88516093,0.00031388,2]
[355747624,1741528157188,-1225.88516093,0.00031388,2]
[355747625,1741528157216,-1225.88516093,0.00031388,2]
[355747626,1741528157243,-1225.88516093,0.00031388,2]
[355747627,1741528157269,-1225.88516093,0.00031388,2]
[355747628,1741528157297,-1225.88516093,0.00031388,2]
[355747629,1741528157324,-1225.88516093,0.00031388,2]
[355747630,1741528157351,-1225.88516093,0.00031388,2]
[355747631,1741528157380,-1225.88516093,0.00031388,2]
[355747632,1741528157406,-1225.88516093,0.00031388,2]
[355747633,1741528157433,-1225.88516093,0.00031388,2]
[355747634,1741528157460,-1225.88516093,0.00031388,2]
[355747635,1741528157488,-1225.88516093,0.00031388,2]
[355747636,1741528157514,-1225.88516093,0.00031388,2]
[355747637,1741528157540,-1225.88516093,0.00031388,2]
[355747638,1741528157566,-1225.88516093,0.00031388,2]
[355747639,1741528157592,-1225.88516093,0.00031388,2]
[355747640,1741528157618,-1225.88516093,0.00031388,2]
[355747641,1741528157645,-1225.88516093,0.00031388,2]
[355747642,1741528157671,-1225.88516093,0.00031388,2]
[355747643,1741528157698,-1225.88516093,0.00031388,2]
[355747644,1741528157726,-1225.88516093,0.00031388,2]
[355747645,1741528157754,-1225.88516093,0.00031388,2]
[355747646,1741528157785,-1225.88516093,0.00031388,2]
[355747647,1741528157813,-1225.88516093,0.00031388,2]
[355747648,1741528157842,-2503.00969092,0.00031388,2]
[355747649,1741528157872,-2503.00969092,0.00031388,2]
[355747650,1741528157901,-2503.00969092,0.00031388,2]
[355747651,1741528157931,-2503.00969092,0.00031388,2]
[355747652,1741528157962,-2503.00969092,0.00031388,2]
[355747653,1741528157992,-2503.00969092,0.00031388,2]
[355747654,1741528158020,-2503.00969092,0.00031388,2]
[355747655,1741528158049,-2503.00969092,0.00031388,2]
[355747656,1741528158084,-2503.00969092,0.00031388,2]
[355747657,1741528158113,-2503.00969092,0.00031388,2]
[355747658,1741528158145,-2503.00969092,0.00031388,2]
[355747659,1741528158175,-2503.00969092,0.00031388,2]
[355747660,1741528158206,-2503.00969092,0.00031388,2]
[355747661,1741528158236,-2503.00969092,0.00031388,2]
[355747662,1741528158266,-2503.00969092,0.00031388,2]
[355747663,1741528158295,-2503.00969092,0.00031388,2]
[355747664,1741528158326,-2503.00969092,0.00031388,2]
[355747665,1741528158356,-2503.00969092,0.00031388,2]
[355747666,1741528158385,-2503.00969092,0.00031388,2]
[355747667,1741528158414,-2503.00969092,0.00031388,2]
[355747668,1741528158443,-2503.00969092,0.00031388,2]
[355747669,1741528158471,-2503.00969092,0.00031388,2]
[355747670,1741528158499,-2503.00969092,0.00031388,2]
[355747671,1741528158527,-2503.00969092,0.00031388,2]
[355747672,1741528158555,-2503.00969092,0.00031388,2]
[355747673,1741528158586,-2503.00969092,0.00031388,2]
[355747674,1741528158615,-2503.00969092,0.00031388,2]
[355747675,1741528158644,-2503.00969092,0.00031388,2]
[355747676,1741528158673,-2503.00969092,0.00031388,2]
[355747677,1741528158703,-2503.00969092,0.00031388,2]
[355747678,1741528158732,-2503.00969092,0.00031388,2]
[355747679,1741528158762,-2503.00969092,0.00031388,2]
[355747680,1741528158791,-2503.00969092,0.00031388,2]
[355747681,1741528158820,-2503.00969092,0.00031388,2]
[355747682,1741528158851,-2503.00969092,0.00031388,2]
[355747683,1741528158881,-2503.00969092,0.00031388,2]
[355747684,1741528158910,-2503.00969092,0.00031388,2]
[355747685,1741528158940,-2503.00969092,0.00031388,2]
[355747686,1741528158971,-2503.00969092,0.00031388,2]
[355747687,1741528158995,-287.0,0.00031389,2]
[355747688,1741528159020,-522.39296613,0.00031389,2]
[355747689,1741528159048,-173.0,0.00031391,7]
[355747690,1741528159073,-150.0,0.00031391,7]
[355747691,1741528159098,-336.0,0.00031391,7]
[355747692,1741528159124,-218.0,0.00031391,7]
[355747693,1741528159150,-533.0,0.00031391,7]
[355747694,1741528159176,-346.0,0.00031391,7]
[355747695,1741528159200,-150.0,0.00031391,7]
[355747696,1741528159224,-150.0,0.00031391,7]
[355747697,1741528159248,-150.0,0.00031391,7]
[355747698,1741528159271,-183.78,0.00031391,2]
[355747699,1741528159296,-1216.80417901,0.000319,6]
[355747700,1741528159320,-213.58077429,0.00032492,2]
[355747701,1741528159344,-250.0,0.00033617,2]
[355747702,1741528159368,-213.58077429,0.00033695,2]
[355747703,1741528159481,-724.2146365,0.00034289,2]
[355747704,1741528159505,-287.0,0.00034389,2]
[355747705,1741528159528,-213.58077429,0.00034897,2]
[355747706,1741528159551,-197.87475,0.00035,5]
[355747707,1741528159573,-5536.1789293,0.00035,11]
[355747708,1741528159597,-1047.8182215,0.00035026,2]
[355747709,1741528159620,-24900.0,0.00035047,2]
[355747710,1741528159643,-406.35,0.000351,30]
[355747711,1741528159666,-500.0,0.00035456,2]
[355747712,1741528159688,-233.86304303,0.00035847,2]
[355747713,1741528159711,-227.446147,0.0003589,2]
[355747714,1741528159734,-1047.8182215,0.00035963,3]
[355747715,1741528159756,-500.0,0.00035973,5]
[355747716,1741528159779,-500.0,0.00035973,5]
[355747717,1741528159802,-500.0,0.00035973,5]
[355747718,1741528159826,-10478.182215,0.0003599,3]
[355747719,1741528159848,-309.3765429,0.0003599,3]
[355747720,1741528159871,-21883.0182257,0.00036,2]
[355747721,1741528164132,-3161.69645169,0.00031388,2]
[355747722,1741528164159,-3161.69645169,0.00031388,2]
[355747723,1741528164185,-3161.69645169,0.00031388,2]
[355747724,1741528164211,-3161.69645169,0.00031388,2]
[355747725,1741528164236,-3161.69645169,0.00031388,2]
[355747726,1741528164261,-3161.69645169,0.00031388,2]
[355747727,1741528164288,-3161.69645169,0.00031388,2]
[355747728,1741528164313,-3161.69645169,0.00031388,2]
[355747729,1741528164338,-3161.69645169,0.00031388,2]
[355747730,1741528164362,-3161.69645169,0.00031388,2]
[355747731,1741528164386,-3161.69645169,0.00031388,2]
[355747732,1741528164411,-3161.69645169,0.00031388,2]
[355747733,1741528164436,-3161.69645169,0.00031388,2]
[355747734,1741528164457,-501.0,0.00031389,2]
[355747735,1741528164478,-195.5275059,0.00031577,2]
[355747736,1741528164500,-53552.6096265,0.00036,2]
[355747737,1741528165079,-500.0,0.00035973,5]
[355747738,1741528165100,-42425.69701202,0.00036,2]
[355747739,1741528170080,-500.0,0.00031373,5]
[355747740,1741528170106,-9199.34567867,0.00036,2]
[355747741,1741528224719,-500.0,0.00031373,5]
[355747742,1741528224745,-500.0,0.00031388,2]
[355747743,1741528224769,-500.0,0.00031388,2]
[355747744,1741528224793,-293.32120294,0.00031388,2]
[355747789,1741528231972,-574.59249091,0.00034591,2]
[355747791,1741528231984,-1352.11289516,0.000359,2]
[355747793,1741528231998,-500.0,0.00035973,5]
[355747795,1741528232007,-616.96585768,0.00035973,5]
[355747797,1741528232017,-500.01899374,0.00035973,5]
[355747799,1741528232027,-500.0,0.00035973,5]
[355747801,1741528232036,-501.80883237,0.00035973,5]
[355747803,1741528232046,-600.0,0.00035978,2]
[355747805,1741528232056,-77930.70195769,0.00036,2]
[355747808,1741528232068,-2130.23047618,0.00036,2]
[355747812,1741528232103,-381.881,0.00036,2]
[355748012,1741528238476,-360.6951629,0.00035999,15]
[355748013,1741528238487,-621.68343236,0.00035999,2]
[355748014,1741528238498,-572.26031491,0.00035999,15]
[355748015,1741528238508,-770.82644379,0.00036,2]
[355748048,1741528240104,-126897.9966464,0.00036,2]
[355748051,1741528240118,-35389.79992,0.00036,2]
[355748060,1741528240201,-19751.67802606,0.00036,2]
[355748138,1741528243041,-15549.97062729,0.00036,2]
[355748139,1741528243054,-103000.19677121,0.00036,2]
[355748140,1741528243186,-494.18,0.00036,2]
[355748141,1741528243200,-612.0994314,0.00036,2]
[355748143,1741528243211,-3948.71079953,0.00036,2]
[355748229,1741528245998,-1266.52032936,0.00036,2]
[355748230,1741528246131,-841.8,0.00036,2]
[355748231,1741528246144,-350.0,0.00036,2]
[355748232,1741528255934,6039.46792288,0.00036,2]
[355748233,1741528260223,157.757,0.00035557,5]
[355748234,1741528262606,195.25493478,0.00035999,15]
[355748235,1741528264152,197.87475,0.00035557,5]
[355748236,1741528270595,514.82396607,0.00035973,3]
[355748237,1741528270711,3259.72222383,0.00036,2]
[355748238,1741528270738,3000.0,0.00036,2]
[355748239,1741528273534,411.07426931,0.00035999,15]
[355748240,1741528273597,500.0,0.00035999,15]
[355748241,1741528277749,3000.0,0.00036,2]
[355748242,1741528278837,3000.0,0.00036,2]
[355748243,1741528279715,154.86657767,0.00035999,15]
[355748244,1741528319989,-170.14,0.0003599,2]
[355748245,1741528320140,-500.0,0.00035999,2]
[355748246,1741528320170,-500.0,0.00035999,2]
[355748247,1741528320204,-500.0,0.00035999,2]
[355748248,1741528320235,-500.0,0.00035999,2]
[355748249,1741528320266,-157.61704366,0.00035999,2]
[355748250,1741528320296,-500.0,0.00035999,2]
[355748251,1741528320326,-500.0,0.00035999,2]
[355748252,1741528320355,-500.0,0.00035999,2]
[355748253,1741528320385,-500.0,0.00035999,2]
[355748254,1741528320414,-500.0,0.00035999,2]
[355748255,1741528320442,-500.0,0.00035999,2]
[355748256,1741528320471,-500.0,0.00035999,2]
[355748257,1741528320499,-500.0,0.00035999,2]
[355748258,1741528320529,-500.0,0.00035999,2]
[355748259,1741528320567,-500.0,0.00035999,2]
[355748260,1741528320596,-500.0,0.00035999,2]
[355748261,1741528320625,-500.0,0.00035999,2]
[355748262,1741528320654,-500.0,0.00035999,2]
[355748263,1741528320685,-500.0,0.00035999,2]
[355748264,1741528320714,-500.0,0.00035999,2]
[355748265,1741528320743,-500.0,0.00035999,2]
[355748266,1741528320773,-500.0,0.00035999,2]
[355748267,1741528320807,-500.0,0.00035999,2]
[355748268,1741528320839,-500.0,0.00035999,2]
[355748269,1741528320868,-500.0,0.00035999,2]
[355748270,1741528320898,-500.0,0.00035999,2]
[355748271,1741528320930,-500.0,0.00035999,2]
[355748272,1741528320959,-500.0,0.00035999,2]
[355748273,1741528320988,-500.0,0.00035999,2]
[355748274,1741528321017,-500.0,0.00035999,2]
[355748275,1741528321047,-500.0,0.00035999,2]
[355748276,1741528321075,-500.0,0.00035999,2]
[355748277,1741528321105,-500.0,0.00035999,2]
[355748278,1741528321135,-500.0,0.00035999,2]
[355748279,1741528321166,-500.0,0.00035999,2]
[355748280,1741528321200,-500.0,0.00035999,2]
[355748281,1741528321231,-500.0,0.00035999,2]
[355748282,1741528321260,-500.0,0.00035999,2]
[355748283,1741528321290,-500.0,0.00035999,2]
[355748284,1741528321320,-500.0,0.00035999,2]
[355748285,1741528321351,-500.0,0.00035999,2]
[355748286,1741528321381,-500.0,0.00035999,2]
[355748287,1741528321413,-500.0,0.00035999,2]
[355748288,1741528321444,-250.0,0.00035999,2]
[355748289,1741528321475,-500.0,0.00035999,2]
[355748290,1741528321506,-500.0,0.00035999,2]
[355748291,1741528321538,-500.0,0.00035999,2]
[355748292,1741528321568,-500.0,0.00035999,2]
[355748293,1741528321605,-500.0,0.00035999,2]
[355748294,1741528321636,-500.0,0.00035999,2]
[355748295,1741528321669,-500.0,0.00035999,2]
[355748296,1741528321708,-500.0,0.00035999,2]
[355748297,1741528321740,-500.0,0.00035999,2]
[355748298,1741528321773,-500.0,0.00035999,2]
[355748299,1741528321808,-500.0,0.00035999,2]
[355748300,1741528321840,-500.0,0.00035999,2]
[355748301,1741528321866,-1160.1530582,0.00036,2]
[355748302,1741528321891,-622.2,0.00036033,2]
[355748303,1741528321914,-645.2214,0.00036088,2]
[355748304,1741528321940,-213.58077429,0.000361,2]
[355748305,1741528321964,-669.0945918,0.00036143,2]
[355748306,1741528321989,-693.8510917,0.00036198,2]
[355748307,1741528322013,-206.07288068,0.000362,98]
[355748308,1741528322044,-719.52358209,0.00036253,2]
[355748309,1741528322070,-300.0,0.00036307,2]
[355748310,1741528322094,-746.14595463,0.00036308,2]
[355748311,1741528322121,-470.47962455,0.00036321,2]
[355748312,1741528322143,-1084.1929617,0.00036343,2]
[355748313,1741528322166,-773.75335495,0.00036363,2]
[355748314,1741528322192,-1047.8182215,0.00036411,3]
[355748315,1741528322216,-802.38222908,0.00036418,2]
[355748316,1741528322238,-380.0,0.00036421,2]
[355748317,1741528322261,-832.07037156,0.00036473,2]
[355748318,1741528322284,-11883.14350771,0.00036666,2]
[355748319,1741528322306,-2887.4725667,0.00036757,2]
[355748320,1741528322329,-1207.22714483,0.000369,7]
[355748321,1741528354843,425.55213806,0.00035999,15]
[355748322,1741528355037,500.0,0.00035999,15]
[355748323,1741528355068,606.66444904,0.00035999,15]
[355748324,1741528355097,500.0,0.00035999,15]
[355748325,1741528355125,500.0,0.00035999,15]
[355748326,1741528355157,338.83480237,0.00035999,15]
[355748327,1741528355263,500.0,0.00035999,15]
[355748328,1741528357745,167.643,0.00035587,5]
[355748329,1741528360265,275.627,0.00035587,5]
[355748330,1741528367996,861.90574686,0.00035999,2]
[355748331,1741528368054,861.90574686,0.00035999,2]
[355748332,1741528368101,861.90574686,0.00035999,2]
[355748333,1741528368153,861.90574686,0.00035999,2]
[355748334,1741528368188,500.0,0.00035999,2]
[355748335,1741528368221,861.90574686,0.00035999,2]
[355748336,1741528368248,500.0,0.00035999,2]
[355748337,1741528368283,861.90574686,0.00035999,2]
[355748338,1741528368312,500.0,0.00035999,2]
[355748339,1741528368344,861.90574686,0.00035999,2]
[355748340,1741528368372,500.0,0.00035999,2]
[355748341,1741528368403,861.90574686,0.00035999,2]
[355748342,1741528368435,500.0,0.00035999,2]
[355748343,1741528368466,861.90574686,0.00035999,2]
[355748344,1741528368495,455.34935167,0.00035999,2]
[355748345,1741528368524,500.0,0.00035999,2]
[355748346,1741528368555,861.90574686,0.00035999,2]
[355748347,1741528368582,500.0,0.00035999,2]
[355748348,1741528368617,861.90574686,0.00035999,2]
[355748349,1741528368646,500.0,0.00035999,2]
[355748350,1741528368678,861.90574686,0.00035999,2]
[355748351,1741528368707,500.0,0.00035999,2]
[355748352,1741528368851,861.90574686,0.00035999,2]
[355748353,1741528368882,500.0,0.00035999,2]
[355748354,1741528368914,861.90574686,0.00035999,2]
[355748355,1741528368944,500.0,0.00035999,2]
[355748356,1741528368983,861.90574686,0.00035999,2]
[355748357,1741528369015,500.0,0.00035999,2]
[355748358,1741528369052,861.90574686,0.00035999,2]
[355748359,1741528369083,861.90574686,0.00035999,2]
[355748360,1741528369126,861.90574686,0.00035999,2]
[355748361,1741528369158,71.72260827,0.00035999,2]
[355748366,1741529191124,-188.38201439,0.00031066,2]
[355748368,1741529205370,3259.72222383,0.00028,10]
[355748369,1741529228088,-3.26599241,0.00031066,2]
[355748370,1741529228111,-1502.79083209,0.00031295,2]
[355748372,1741529236083,-504.75171544,0.00031295,2]
[355748373,1741529249097,-1295.03577737,0.00031295,2]
[355748374,1741529249131,-157.11114496,0.00031387,2]
[355748375,1741529251809,5000.0,0.00028,10]
[355748376,1741529252133,-242.88885504,0.00031387,2]
[355748377,1741529252163,-3625.9119217,0.00031388,2]
[355748378,1741529252192,-855.97764683,0.00032117,2]
[355748386,1741529358152,-1067.34450702,0.00029288,2]
[355748387,1741529358174,-153.0,0.0003,2]
[355748388,1741529358195,-1526.27244125,0.00030966,2]
[355748389,1741529358216,-1392.60595167,0.00032117,2]
[355748390,1741529358239,-162.26906325,0.00032391,2]
[355748391,1741529358261,-400.0,0.0003247,2]
[355748392,1741529358283,-500.0,0.00032471,2]
[355748393,1741529358306,-630.46135907,0.00032471,2]
[355748394,1741529358329,-321.66124887,0.00032471,2]
[355748395,1741529358355,-500.0,0.00032471,2]
[355748396,1741529358375,-329.40871748,0.00032471,2]
[355748397,1741529358400,-500.0,0.00032471,2]
[355748398,1741529358423,-500.0,0.00032471,2]
[355748399,1741529358461,-500.0,0.00032471,2]
[355748400,1741529358486,-500.0,0.00032471,2]
[355748401,1741529358516,-500.0,0.00032471,2]
[355748402,1741529358540,-500.0,0.00032471,2]
[355748403,1741529358565,-500.0,0.00032471,2]
[355748404,1741529358590,-200.0,0.00032471,2]
[355748405,1741529358614,-500.0,0.00032471,2]
[355748406,1741529358643,-500.0,0.00032471,2]
[355748407,1741529358665,-500.0,0.00032471,2]
[355748408,1741529358689,-500.0,0.00032471,2]
[355748409,1741529358717,-500.0,0.00032471,2]
[355748410,1741529358745,-500.0,0.00032471,2]
[355748411,1741529358768,-500.0,0.00032471,2]
[355748412,1741529358792,-444.00640775,0.00032471,2]
[355748413,1741529358816,-500.0,0.00032471,2]
[355748414,1741529358839,-500.0,0.00032471,2]
[355748415,1741529358863,-500.0,0.00032471,2]
[355748416,1741529358891,-500.0,0.00032471,2]
[355748417,1741529358915,-500.0,0.00032471,2]
[355748418,1741529358940,-500.0,0.00032471,2]
[355748419,1741529358964,-500.0,0.00032471,2]
[355748420,1741529358989,-500.0,0.00032471,2]
[355748421,1741529359013,-500.0,0.00032471,2]
[355748422,1741529359036,-500.0,0.00032471,2]
[355748423,1741529359065,-500.0,0.00032471,2]
[355748424,1741529359090,-500.0,0.00032471,2]
[355748425,1741529359114,-500.0,0.00032471,2]
[355748426,1741529359143,-500.0,0.00032471,2]
[355748427,1741529359167,-500.0,0.00032471,2]
[355748428,1741529359196,-500.0,0.00032471,2]
[355748429,1741529359225,-500.0,0.00032471,2]
[355748430,1741529359253,-500.0,0.00032471,2]
[355748431,1741529359276,-220.03416832,0.00032471,2]
[355748432,1741529359304,-500.0,0.00032471,2]
[355748433,1741529359331,-500.0,0.00032471,2]
[355748434,1741529359497,-500.0,0.00032471,2]
[355748435,1741529359525,-500.0,0.00032471,2]
[355748436,1741529359548,-500.0,0.00032471,2]
[355748437,1741529359577,-500.0,0.00032471,2]
[355748438,1741529359599,-500.0,0.00032471,2]
[355748439,1741529359625,-500.0,0.00032471,2]
[355748440,1741529359648,-300.0,0.00032471,2]
[355748441,1741529359673,-500.0,0.00032471,2]
[355748442,1741529359695,-500.0,0.00032471,2]
[355748443,1741529359720,-500.0,0.00032471,2]
[355748444,1741529359743,-500.0,0.00032471,2]
[355748445,1741529359767,-500.0,0.00032471,2]
[355748446,1741529359789,-500.0,0.00032471,2]
[355748447,1741529359815,-500.0,0.00032471,2]
[355748448,1741529359840,-500.0,0.00032471,2]
[355748449,1741529359866,-500.0,0.00032471,2]
[355748450,1741529359893,-500.0,0.00032471,2]
[355748451,1741529359920,-500.0,0.00032471,2]
[355748452,1741529359946,-500.0,0.00032471,2]
[355748453,1741529359971,-500.0,0.00032471,2]
[355748454,1741529359992,-500.0,0.00032471,2]
[355748455,1741529360017,-500.0,0.00032471,2]
[355748456,1741529360043,-500.0,0.00032471,2]
[355748457,1741529360069,-500.0,0.00032471,2]
[355748458,1741529360095,-500.0,0.00032471,2]
[355748459,1741529360121,-500.0,0.00032471,2]
[355748460,1741529360148,-500.0,0.00032471,2]
[355748461,1741529360175,-500.0,0.00032471,2]
[355748462,1741529360204,-500.0,0.00032471,2]
[355748463,1741529360233,-500.0,0.00032471,2]
[355748464,1741529360259,-500.0,0.00032471,2]
[355748465,1741529360284,-500.0,0.00032471,2]
[355748466,1741529360309,-500.0,0.00032471,2]
[355748467,1741529360336,-500.0,0.00032471,2]
[355748468,1741529360366,-500.0,0.00032471,2]
[355748469,1741529360392,-500.0,0.00032471,2]
[355748470,1741529360416,-500.0,0.00032471,2]
[355748471,1741529360439,-500.0,0.00032471,2]
[355748472,1741529360461,-500.0,0.00032471,2]
[355748473,1741529360484,-473.80349915,0.00032471,2]
[355748474,1741529360505,-500.0,0.00032471,2]
[355748475,1741529360528,-500.0,0.00032471,2]
[355748476,1741529360551,-500.0,0.00032471,2]
[355748477,1741529360573,-500.0,0.00032471,2]
[355748478,1741529360594,-500.0,0.00032471,2]
[355748479,1741529360617,-500.0,0.00032471,2]
[355748480,1741529360639,-500.0,0.00032471,2]
[355748481,1741529360661,-500.0,0.00032471,2]
[355748482,1741529360684,-500.0,0.00032471,2]
[355748483,1741529360707,-500.0,0.00032471,2]
[355748484,1741529360730,-500.0,0.00032471,2]
[355748485,1741529360752,-216.49003705,0.00032471,2]
[355748486,1741529360776,-500.0,0.00032471,2]
[355748487,1741529360799,-500.0,0.00032471,2]
[355748488,1741529360823,-500.0,0.00032471,2]
[355748489,1741529360847,-500.0,0.00032471,2]
[355748490,1741529360870,-500.0,0.00032471,2]
[355748491,1741529360892,-242.76688282,0.00032471,2]
[355748492,1741529360920,-500.0,0.00032471,2]
[355748493,1741529360944,-500.0,0.00032471,2]
[355748494,1741529360967,-500.0,0.00032471,2]
[355748495,1741529360990,-500.0,0.00032471,2]
[355748496,1741529361014,-500.0,0.00032471,2]
[355748497,1741529361049,-500.0,0.00032471,2]
[355748498,1741529361086,-500.0,0.00032471,2]
[355748499,1741529361117,-1995.10577764,0.00032471,2]
[355748500,1741529361143,-500.0,0.00032471,2]
[355748501,1741529361169,-500.0,0.00032471,2]
[355748502,1741529361198,-1995.10577764,0.00032471,2]
[355748503,1741529361222,-500.0,0.00032471,2]
[355748504,1741529361247,-500.0,0.00032471,2]
[355748505,1741529361270,-500.0,0.00032471,2]
[355748506,1741529361298,-1995.10577764,0.00032471,2]
[355748507,1741529361322,-500.0,0.00032471,2]
[355748508,1741529361352,-500.0,0.00032471,2]
[355748509,1741529361376,-500.0,0.00032471,2]
[355748510,1741529361401,-500.0,0.00032471,2]
[355748511,1741529361430,-1995.10577764,0.00032471,2]
[355748512,1741529361458,-1995.10577764,0.00032471,2]
[355748513,1741529361484,-1995.10577764,0.00032471,2]
[355748514,1741529361510,-1995.10577764,0.00032471,2]
[355748515,1741529361658,-500.0,0.00032471,2]